[Event "GER-ch Youth-U10 2022"]
[Site "Willingen"]
[Date "2022.06.08"]
[Round "6.14"]
[White "Van 't Hof, Eric"]
[Black "Bundan, Edward"]
[Result "0-1"]
[ECO "B48"]
[WhiteElo "2081"]
[BlackElo "1240"]
[Annotator "TA"]
[PlyCount "104"]
[EventDate "2022.06.05"]
[EventType "swiss"]
[EventRounds "11"]
[EventCountry "GER"]
[SourceTitle "playchess.com"]
[Source "ChessBase"]
[SourceQuality "1"]
[TimeControl "40/4500+30:900+30"]

{[%evp 11,104,24,39,24,44,54,68,64,83,86,150,150,130,140,210,176,189,145,155,51,50,57,48,64,51,38,59,-8,-20,-14,0,-84,-105,-133,-130,-119,-39,-86,-56,-81,-32,-80,-18,-37,-40,-26,15,8,25,-58,-57,-78,-83,-93,-55,-80,-20,-68,-30,-48,-48,-51,-62,-186,-200,-229,-225,-223,-216,-294,-272,-269,-226,-270,-229,-229,-229,-223,-26,-20,-24,-16,0,-29963,-29965,-29967,-29968,-29968,-29968,-29970,-29970,-29974,-29975,-29975,-29976]} 1. e4 {[%emt 0:00:03]} c5 {[%emt 0:00:11]} 2. Nf3 {[%emt 0:00:09]} e6 {[%emt 0:00:03]} 3. d4 {[%emt 0:00:11]} cxd4 {[%emt 0:00:10]} 4. Nxd4 {[%emt 0:00:12]} Nc6 {[%emt 0:00:09]} 5. Nc3 {[%emt 0:00:11]} Qc7 {[%emt 0:00:04]} 6. Be3 {[%emt 0:00:11]} Nf6 {[%emt 0:00:07]} 7. Qf3 {[%emt 0:00:20] B48: Sicilian: Taimanov: 5 Nc3 Qc7 6 Be3 a6 without Be2.} Bb4 {[%emt 0:01:28] aiming for ...Ne5.} 8. Ndb5 {[%emt 0:04:48]} Qa5 {[%emt 0:11:52] Strongly threatening ...a6.} 9. O-O-O {[%emt 0:09:41] White is slightly better.} O-O {[%emt 0:02:57]} 10. a3 {[%emt 0:03:30] [#]} Bxc3 $146 {[%emt 0:06:07]} (10... Be7 $142) ({Predecessor:} 10... Be7 11. Nd6 b5 12. Bxb5 Rb8 13. Nc4 Qc7 14. e5 Nxe5 15. Nxe5 Bb7 16. Qf4 d6 {1-0 (31) Ileana,G (2344)-Haring,F (2334) Pardubice 2019}) 11. Nxc3 $16 {[%emt 0:00:20]} (11. bxc3 $2 d5 12. exd5 exd5 $17) 11... a6 {[%emt 0:00:51]} 12. h4 {[%emt 0:07:34]} b5 {[%emt 0:01:06]} (12... Ne8 $16 {keeps fighting.} 13. Kb1 f5) 13. Bc5 {[%emt 0:03:50]} Rd8 {[%emt 0:07:52][%cal Od7d5]} 14. Qe3 {[%emt 0:02:15] Hoping for Bb6.} Rb8 {[%emt 0:06:34] Inhibits Bb6.} 15. Na2 {[%emt 0:06:01] Prevents b4.} (15. Be2 $16) 15... d5 $14 {[%emt 0:06:31]} 16. Nb4 {[%emt 0:11:50]} Nxb4 {[%emt 0:04:42]} 17. Bxb4 {[%emt 0:00:39]} Qc7 {[%emt 0:00:50]} 18. e5 {[%emt 0:03:28]} Ng4 {[%emt 0:11:19]} 19. Qg3 {[%emt 0:00:22]} (19. Qd2 $1 $14) 19... Nxe5 $11 {[%emt 0:01:20]} 20. Bc3 {[%emt 0:04:04]} f6 $36 {[%emt 0:01:02][%mdl 2048] Black is pushing.} 21. f4 {[%emt 0:01:03]} (21. h5 $11 {remains equal.}) 21... Ng6 $17 {[%emt 0:02:45]} 22. Bd2 {[%emt 0:00:58]} e5 {[%emt 0:02:20]} 23. fxe5 {[%emt 0:01:40]} Qxe5 {[%emt 0:00:30]} (23... Bf5 $17 {[%csl Gf5][%cal Rc7c2]} 24. Bd3 Bxd3 25. Qxd3 Nxe5) 24. Qf2 {[%emt 0:01:52]} (24. Qxe5 $15 {is more appropriate.} Nxe5 25. Ba5) 24... Qf5 {[%emt 0:02:22] Black is more active.} 25. Qg3 {[%emt 0:01:47] [#]} Ne5 {[%emt 0:01:30]} (25... Be6 $1 $17 26. Ba5 Rdc8) 26. Be2 {[%emt 0:01:30]} (26. Bc3 $15) 26... Bb7 {[%emt 0:01:07]} (26... Qe4 $17 27. Bd3 Qg4) 27. Rhf1 {[%emt 0:00:50]} Qg6 {[%emt 0:00:42]} 28. Qxg6 {[%emt 0:01:13]} Nxg6 {[%emt 0:00:16]} 29. h5 {[%emt 0:01:01]} Ne5 {[%emt 0:00:31]} 30. Bf4 {[%emt 0:00:33]} (30. h6 $11) 30... h6 {[%emt 0:00:36]} 31. Bxe5 {[%emt 0:01:12]} fxe5 {[%emt 0:00:07]} 32. Bg4 {[%emt 0:00:42]} Re8 {[%emt 0:01:27] Prevents Be6+.} 33. Bf5 {[%emt 0:00:18]} e4 {[%emt 0:00:42]} ({Black should play} 33... Rbd8 $17) 34. Bg6 {[%emt 0:00:27]} (34. g4 $11 {feels stronger.}) 34... Re7 {[%emt 0:00:23]} 35. Rf5 {[%emt 0:00:30]} e3 {[%emt 0:02:00]} 36. Re1 {[%emt 0:00:28]} d4 {[%emt 0:00:52]} 37. g4 {[%emt 0:00:27]} (37. Rf4 $15) 37... Be4 $19 {[%emt 0:00:27]} 38. Rf4 {[%emt 0:00:41]} Bxg6 {[%emt 0:00:40]} 39. hxg6 {[%emt 0:00:20][%mdl 4096] Endgame KRR-KRR} Rd8 {[%emt 0:00:33]} 40. Rf3 {[%emt 0:00:26]} Rde8 {[%emt 0:01:27]} 41. Kd1 {[%emt 0:16:26]} Re6 {[%emt 0:15:30]} 42. Rf4 {[%emt 0:00:25]} Rd8 {[%emt 0:00:43]} ({Weaker is} 42... Rxg6 43. Rxd4 Rf6 44. Re2 $17) 43. Ke2 {[%emt 0:00:55]} Rxg6 {[%emt 0:00:42][%cal Oh6h5]} 44. Rd1 {[%emt 0:00:16]} Rc6 $2 {[%emt 0:01:26]} (44... Rgd6 $19 {...R8d7 is the strong threat.} 45. Rd3 Kh7) 45. c3 $1 $11 {[%emt 0:00:31]} Rc4 {[%emt 0:02:41][%cal Od4d3]} 46. Rdxd4 {[%emt 0:00:42]} Rdxd4 {[%emt 0:00:40]} 47. Rxd4 {[%emt 0:00:17][%mdl 8192] [#]} (47. cxd4 $11 b4 48. Kxe3) 47... Rxd4 {[%emt 0:00:55] Black mates.} 48. cxd4 {[%emt 0:00:10] KP-KP} Kf7 {[%emt 0:00:14]} 49. Kxe3 {[%emt 0:00:09]} Ke6 {[%emt 0:00:10]} 50. Ke4 {[%emt 0:00:14]} g6 {[%emt 0:00:16]} 51. b4 {[%emt 0:00:40]} h5 {[%emt 0:02:30]} 52. d5+ {[%emt 0:01:00]} Kd6 {[%emt 0:00:50] Black used his chance.  Weighted Error Value: White=0.34/Black=0.27 (precise)} 0-1

[Event "GER-ch Youth-U10 2022"]
[Site "Willingen"]
[Date "2022.06.08"]
[Round "6.16"]
[White "Lanert, Theodor"]
[Black "Chua, Daniel James"]
[Result "0-1"]
[ECO "C50"]
[WhiteElo "1306"]
[BlackElo "1314"]
[Annotator "NA RC COMBH"]
[PlyCount "86"]
[EventDate "2022.06.05"]
[EventType "swiss"]
[EventRounds "11"]
[EventCountry "GER"]
[SourceTitle "playchess.com"]
[Source "ChessBase"]
[SourceQuality "1"]
[TimeControl "40/4500+30:900+30"]

1. e4 {[%emt 0:00:03]} e5 {[%emt 0:00:16]} 2. Nf3 {[%emt 0:00:10]} Nc6 {[%emt 0:00:12]} 3. Bc4 {[%emt 0:00:10]} Bc5 {[%emt 0:00:16]} 4. O-O {[%emt 0:00:09]} Nf6 {[%emt 0:00:24]} 5. d4 {[%emt 0:00:04]} Bxd4 {[%emt 0:00:16]} 6. Nxd4 {[%emt 0:00:20]} Nxd4 {[%emt 0:00:04]} 7. Bg5 {[%emt 0:00:07]} h6 {[%emt 0:01:27]} 8. Bh4 {[%emt 0:00:38]} d6 {[%emt 0:00:46]} 9. f4 {[%emt 0:02:15]} Qe7 {[%emt 0:01:24]} 10. fxe5 {[%emt 0:00:20]} dxe5 {[%emt 0:00:18]} 11. Nc3 {[%emt 0:00:37]} Be6 {[%emt 0:02:50]} 12. Bxe6 {[%emt 0:02:21]} Qxe6 {[%emt 0:00:14]} 13. Bxf6 {[%emt 0:00:38]} gxf6 {[%emt 0:00:40]} 14. Nd5 {[%emt 0:00:07]} O-O-O {[%emt 0:02:00]} 15. Rxf6 {[%emt 0:00:24]} Qd7 {[%emt 0:00:09]} 16. c3 {[%emt 0:00:53]} Ne6 {[%emt 0:02:15]} 17. Qh5 {[%emt 0:00:42]} Ng5 {[%emt 0:03:12]} 18. Re1 {[%emt 0:02:22]} Nxe4 {[%emt 0:01:24]} 19. Rxe4 {[%emt 0:02:36]} Qxd5 {[%emt 0:00:54]} 20. Rxe5 {[%emt 0:00:53]} Qd1+ {[%emt 0:00:15]} 21. Rf1 {[%emt 0:00:12]} Qxh5 {[%emt 0:00:45]} 22. Rxh5 {[%emt 0:00:07]} Rd2 {[%emt 0:00:30]} 23. Rb5 {[%emt 0:00:18]} Re8 {[%emt 0:00:55]} 24. Rf2 {[%emt 0:01:16]} Re1+ {[%emt 0:00:57]} 25. Rf1 {[%emt 0:00:03]} Ree2 {[%emt 0:00:07]} 26. Rxf7 {[%emt 0:00:22]} Rxg2+ {[%emt 0:00:08]} 27. Kf1 {[%emt 0:00:10]} Rxh2 {[%emt 0:00:06]} 28. Kg1 {[%emt 0:00:16]} Rxb2 {[%emt 0:00:21]} 29. Re5 {[%emt 0:00:25]} Rhd2 {[%emt 0:00:34]} 30. Re8+ {[%emt 0:01:22]} Rd8 {[%emt 0:00:03]} 31. Ree7 {[%emt 0:00:05]} Rd1+ {[%emt 0:00:08]} 32. Rf1 {[%emt 0:00:11]} Rxf1+ {[%emt 0:00:05]} 33. Kxf1 {[%emt 0:00:10]} Rxa2 {[%emt 0:00:06]} 34. Ke1 {[%emt 0:00:28]} b5 {[%emt 0:00:33]} 35. Re5 {[%emt 0:00:14]} a6 {[%emt 0:00:07]} 36. Rh5 {[%emt 0:00:08]} a5 {[%emt 0:00:29]} 37. Rxb5 {[%emt 0:00:06]} a4 {[%emt 0:00:31]} 38. Ra5 {[%emt 0:01:00]} Kb7 {[%emt 0:00:57]} 39. c4 {[%emt 0:00:35]} Kb6 {[%emt 0:01:10]} 40. Rb5+ {[%emt 0:00:13]} Ka6 {[%emt 0:00:21]} 41. Kd1 {[%emt 0:15:09]} a3 {[%emt 0:15:11]} 42. Rb8 {[%emt 0:01:05]} Ka5 {[%emt 0:01:27]} 43. Kc1 {[%emt 0:01:05]} Ka4 {[%emt 0:01:42]} 0-1

[Event "GER-ch Youth-U10 2022"]
[Site "Willingen"]
[Date "2022.06.08"]
[Round "6.17"]
[White "Vu, Khoi Nguyen"]
[Black "Moskalenko, Michael"]
[Result "0-1"]
[ECO "B13"]
[WhiteElo "1627"]
[BlackElo "1266"]
[Annotator "NA RC COMBH"]
[PlyCount "96"]
[EventDate "2022.06.05"]
[EventType "swiss"]
[EventRounds "11"]
[EventCountry "GER"]
[SourceTitle "playchess.com"]
[Source "ChessBase"]
[SourceQuality "1"]
[TimeControl "40/4500+30:900+30"]

1. e4 {[%emt 0:00:03]} c6 {[%emt 0:00:06]} 2. d4 {[%emt 0:00:21]} d5 {[%emt 0:00:05]} 3. exd5 {[%emt 0:00:55]} cxd5 {[%emt 0:00:33]} 4. Bd3 {[%emt 0:02:02]} Nf6 {[%emt 0:00:32]} 5. Bf4 {[%emt 0:01:31]} Nc6 {[%emt 0:00:55]} 6. Nf3 {[%emt 0:00:37]} Bg4 {[%emt 0:00:25]} 7. Nbd2 {[%emt 0:00:10]} Nxd4 {[%emt 0:04:58]} 8. h3 {[%emt 0:00:52]} Nxf3+ {[%emt 0:00:33]} 9. Nxf3 {[%emt 0:00:22]} Bd7 {[%emt 0:00:20]} 10. O-O {[%emt 0:00:48]} e6 {[%emt 0:00:15]} 11. Ne5 {[%emt 0:02:03]} Bc5 {[%emt 0:01:27]} 12. Bg5 {[%emt 0:00:38]} Be7 {[%emt 0:01:45]} 13. Qe2 {[%emt 0:00:46]} O-O {[%emt 0:00:29]} 14. h4 {[%emt 0:02:36]} h6 {[%emt 0:01:02]} 15. Bd2 {[%emt 0:00:15]} Bd6 {[%emt 0:01:38]} 16. Nxd7 {[%emt 0:02:10]} Nxd7 {[%emt 0:01:38]} 17. g3 {[%emt 0:04:49]} Ne5 {[%emt 0:02:38]} 18. Bc3 {[%emt 0:00:45]} Nxd3 {[%emt 0:00:49]} 19. Qxd3 {[%emt 0:00:11]} Bc5 {[%emt 0:01:19]} 20. b4 {[%emt 0:02:32]} Bb6 {[%emt 0:01:22]} 21. a4 {[%emt 0:00:17]} Bc7 {[%emt 0:02:39]} 22. Rad1 {[%emt 0:01:47]} Rc8 {[%emt 0:03:12]} 23. Qd4 {[%emt 0:01:10]} f6 {[%emt 0:00:57]} 24. Rfe1 {[%emt 0:00:33]} Be5 {[%emt 0:01:34]} 25. Rxe5 {[%emt 0:01:17]} fxe5 {[%emt 0:02:36]} 26. Qxe5 {[%emt 0:00:45]} Qf6 {[%emt 0:00:34]} 27. Qxf6 {[%emt 0:01:06]} gxf6 {[%emt 0:00:09]} 28. Bd4 {[%emt 0:00:07]} a6 {[%emt 0:00:19]} 29. Bc5 {[%emt 0:00:15]} Rfe8 {[%emt 0:00:27]} 30. a5 {[%emt 0:00:12]} Rcd8 {[%emt 0:01:24]} 31. Kf1 {[%emt 0:02:10]} Kf7 {[%emt 0:00:37]} 32. Ke2 {[%emt 0:00:22]} h5 {[%emt 0:01:44]} 33. Ke3 {[%emt 0:02:45]} e5 {[%emt 0:01:04]} 34. Kd3 {[%emt 0:03:25]} Rg8 {[%emt 0:00:40]} 35. Ke3 {[%emt 0:06:13]} Rg4 {[%emt 0:01:22]} 36. Kd3 {[%emt 0:01:50]} Ke6 {[%emt 0:03:26]} 37. Rb1 {[%emt 0:07:39]} Rc8 {[%emt 0:02:15]} 38. Re1 {[%emt 0:01:17]} Rc4 {[%emt 0:04:20]} 39. Re2 {[%emt 0:11:29]} Rg8 {[%emt 0:01:41]} 40. Re1 {[%emt 0:01:16]} Rgg4 {[%emt 0:03:32]} 41. c3 {[%emt 0:19:43]} Kf5 {[%emt 0:25:23]} 42. Rg1 {[%emt 0:05:30]} Rg6 {[%emt 0:07:03]} 43. Rb1 {[%emt 0:01:08]} Ke6 {[%emt 0:00:55]} 44. Re1 {[%emt 0:00:20]} Rgg4 {[%emt 0:03:06]} 45. Re2 {[%emt 0:04:41]} f5 {[%emt 0:02:57]} 46. Bd4 {[%emt 0:03:58]} Re4 {[%emt 0:00:36]} 47. Be3 {[%emt 0:01:40]} f4 {[%emt 0:02:50]} 48. f3 {[%emt 0:01:03]} Rxe3+ {[%emt 0:00:05]} 0-1

[Event "GER-ch Youth-U10 2022"]
[Site "Willingen"]
[Date "2022.06.08"]
[Round "6.18"]
[White "Rinke, Alexander"]
[Black "Fels, Mattis"]
[Result "1/2-1/2"]
[ECO "B01"]
[WhiteElo "1292"]
[BlackElo "1395"]
[Annotator "NA RC COMBH"]
[PlyCount "90"]
[EventDate "2022.06.05"]
[EventType "swiss"]
[EventRounds "11"]
[EventCountry "GER"]
[SourceTitle "playchess.com"]
[Source "ChessBase"]
[SourceQuality "1"]
[TimeControl "40/4500+30:900+30"]

1. e4 {[%emt 0:00:01]} d5 {[%emt 0:00:08]} 2. exd5 {[%emt 0:00:06]} Qxd5 {[%emt 0:00:05]} 3. Nc3 {[%emt 0:00:06]} Qa5 {[%emt 0:00:06]} 4. g3 {[%emt 0:00:08]} Nf6 {[%emt 0:01:33]} 5. Bg2 {[%emt 0:00:15]} c6 {[%emt 0:01:09]} 6. Nge2 {[%emt 0:00:21]} Bf5 {[%emt 0:04:13]} 7. b4 {[%emt 0:01:16]} Qc7 {[%emt 0:01:55]} 8. b5 {[%emt 0:01:54]} Qc8 {[%emt 0:04:24]} 9. O-O {[%emt 0:01:47]} Bh3 {[%emt 0:02:48]} 10. Bxh3 {[%emt 0:07:18]} Qxh3 {[%emt 0:00:09]} 11. Nf4 {[%emt 0:00:11]} Qh6 {[%emt 0:04:39]} 12. d3 {[%emt 0:00:21]} g5 {[%emt 0:00:57]} 13. Ng2 {[%emt 0:02:23]} Qh3 {[%emt 0:03:15]} 14. f3 {[%emt 0:02:29]} Rg8 {[%emt 0:07:06]} 15. Be3 {[%emt 0:02:24]} Rg6 {[%emt 0:02:34]} 16. Qd2 {[%emt 0:01:45]} Rh6 {[%emt 0:02:22]} 17. Ne1 {[%emt 0:00:11]} Rh5 {[%emt 0:17:59]} 18. g4 {[%emt 0:01:49]} Rh4 {[%emt 0:00:15]} 19. Bxg5 {[%emt 0:01:06]} Bh6 {[%emt 0:00:05]} 20. Bxh6 {[%emt 0:00:15]} Rxh6 {[%emt 0:00:08]} 21. Qg2 {[%emt 0:01:45]} Qh4 {[%emt 0:03:47]} 22. Kh1 {[%emt 0:07:49]} Nbd7 {[%emt 0:03:32]} 23. bxc6 {[%emt 0:00:21]} bxc6 {[%emt 0:00:01]} 24. Qf2 {[%emt 0:00:06]} Qh3 {[%emt 0:00:29]} 25. g5 {[%emt 0:00:14]} Rh5 {[%emt 0:01:52]} 26. gxf6 {[%emt 0:00:28]} Nxf6 {[%emt 0:00:12]} 27. Ne4 {[%emt 0:01:49]} Nxe4 {[%emt 0:00:49]} 28. fxe4 {[%emt 0:00:26]} Rb8 {[%emt 0:00:37]} 29. Qxf7+ {[%emt 0:00:29]} Kd7 {[%emt 0:00:13]} 30. Qf2 {[%emt 0:02:29]} Rf8 {[%emt 0:00:33]} 31. Nf3 {[%emt 0:04:47]} Rxf3 {[%emt 0:00:59]} 32. Qg2 {[%emt 0:00:14]} Qxg2+ {[%emt 0:01:19]} 33. Kxg2 {[%emt 0:00:08]} Rfh3 {[%emt 0:00:23]} 34. Rh1 {[%emt 0:00:15]} Re3 {[%emt 0:01:22]} 35. Rae1 {[%emt 0:00:19]} Rxe1 {[%emt 0:00:14]} 36. Rxe1 {[%emt 0:00:05]} Ra5 {[%emt 0:00:05]} 37. Ra1 {[%emt 0:00:17]} Rc5 {[%emt 0:01:57]} 38. c4 {[%emt 0:00:17]} Ke6 {[%emt 0:01:03]} 39. Kf3 {[%emt 0:00:19]} Ke5 {[%emt 0:00:30]} 40. Ke3 {[%emt 0:00:14]} Ra5 {[%emt 0:01:05]} 41. d4+ {[%emt 0:15:33]} Kd6 {[%emt 0:15:25]} 42. e5+ {[%emt 0:01:20]} Ke6 {[%emt 0:00:08]} 43. Ke4 {[%emt 0:01:02]} h6 {[%emt 0:00:40]} 44. Rd1 {[%emt 0:00:11]} Ra4 {[%emt 0:00:59]} 45. Rd2 {[%emt 0:00:28]} Rxc4 {[%emt 0:00:41]} 1/2-1/2

[Event "GER-ch Youth-U10 2022"]
[Site "Willingen"]
[Date "2022.06.08"]
[Round "6.20"]
[White "Svanidze, Alexander"]
[Black "Wolf, Noah"]
[Result "1/2-1/2"]
[ECO "C24"]
[WhiteElo "1348"]
[BlackElo "1073"]
[Annotator "NA RC COMBH"]
[PlyCount "42"]
[EventDate "2022.06.05"]
[EventType "swiss"]
[EventRounds "11"]
[EventCountry "GER"]
[SourceTitle "playchess.com"]
[Source "ChessBase"]
[SourceQuality "1"]
[TimeControl "40/4500+30:900+30"]

1. e4 {[%emt 0:00:02]} e5 {[%emt 0:00:15]} 2. Nf3 {[%emt 0:00:06]} Nc6 {[%emt 0:00:27]} 3. Bc4 {[%emt 0:00:07]} Nf6 {[%emt 0:00:40]} 4. d3 {[%emt 0:00:22]} d5 {[%emt 0:00:54]} 5. exd5 {[%emt 0:00:05]} Nxd5 {[%emt 0:01:18]} 6. h3 {[%emt 0:01:51]} h6 {[%emt 0:03:13]} 7. Bd2 {[%emt 0:00:10]} Bc5 {[%emt 0:01:31]} 8. Nc3 {[%emt 0:00:28]} Nb6 {[%emt 0:02:51]} 9. Bb3 {[%emt 0:00:27]} Bd7 {[%emt 0:03:42]} 10. Qe2 {[%emt 0:01:37]} Qe7 {[%emt 0:05:30]} 11. Ne4 {[%emt 0:02:40]} O-O-O {[%emt 0:01:32]} 12. Nxc5 {[%emt 0:03:15]} Qxc5 {[%emt 0:00:27]} 13. O-O-O {[%emt 0:03:34]} Bf5 {[%emt 0:01:13]} 14. Bxf7 {[%emt 0:04:03]} Bxd3 {[%emt 0:00:17]} 15. Be6+ {[%emt 0:06:54]} Kb8 {[%emt 0:00:20]} 16. Be3 {[%emt 0:00:23]} Bxe2 {[%emt 0:00:39]} 17. Rxd8+ {[%emt 0:00:08]} Rxd8 {[%emt 0:00:55]} 18. Bxc5 {[%emt 0:00:54]} Na4 {[%emt 0:04:46]} 19. Be3 {[%emt 0:03:49]} Rd6 {[%emt 0:09:16]} 20. Bb3 {[%emt 0:00:44]} Nb6 {[%emt 0:00:45]} 21. Nd2 {[%emt 0:04:10]} Na5 {[%emt 0:01:02]} 1/2-1/2

[Event "GER-ch Youth-U10 2022"]
[Site "Willingen"]
[Date "2022.06.08"]
[Round "6.21"]
[White "Yao, Haiyang"]
[Black "Hagn, Tobias"]
[Result "1-0"]
[ECO "C50"]
[WhiteElo "1098"]
[BlackElo "1337"]
[Annotator "NA RC COMBH"]
[PlyCount "85"]
[EventDate "2022.06.05"]
[EventType "swiss"]
[EventRounds "11"]
[EventCountry "GER"]
[SourceTitle "playchess.com"]
[Source "ChessBase"]
[SourceQuality "1"]
[TimeControl "40/4500+30:900+30"]

1. e4 {[%emt 0:00:02]} e5 {[%emt 0:00:10]} 2. Nf3 {[%emt 0:00:04]} Nc6 {[%emt 0:00:20]} 3. Bc4 {[%emt 0:00:08]} Bc5 {[%emt 0:00:25]} 4. Nc3 {[%emt 0:00:14]} Nf6 {[%emt 0:00:37]} 5. d3 {[%emt 0:00:14]} d6 {[%emt 0:01:00]} 6. Bg5 {[%emt 0:00:13]} h6 {[%emt 0:00:13]} 7. Bh4 {[%emt 0:00:07]} Be6 {[%emt 0:00:54]} 8. Bb3 {[%emt 0:00:41]} Bb4 {[%emt 0:01:47]} 9. O-O {[%emt 0:00:34]} g5 {[%emt 0:02:37]} 10. Bg3 {[%emt 0:00:21]} Bxc3 {[%emt 0:00:40]} 11. bxc3 {[%emt 0:00:10]} Bg4 {[%emt 0:00:25]} 12. h3 {[%emt 0:00:31]} Bxf3 {[%emt 0:01:45]} 13. Qxf3 {[%emt 0:00:18]} Qe7 {[%emt 0:01:46]} 14. a4 {[%emt 0:00:36]} Na5 {[%emt 0:03:09]} 15. h4 {[%emt 0:00:38]} c6 {[%emt 0:03:48]} 16. Rae1 {[%emt 0:00:41]} Nxb3 {[%emt 0:02:53]} 17. cxb3 {[%emt 0:00:08]} Kd7 {[%emt 0:00:26]} 18. d4 {[%emt 0:00:49]} g4 {[%emt 0:02:04]} 19. Qd3 {[%emt 0:00:22]} Kc7 {[%emt 0:00:59]} 20. d5 {[%emt 0:00:59]} cxd5 {[%emt 0:01:16]} 21. exd5 {[%emt 0:00:18]} Rac8 {[%emt 0:00:21]} 22. c4 {[%emt 0:01:14]} Kb8 {[%emt 0:01:00]} 23. b4 {[%emt 0:01:03]} Nd7 {[%emt 0:01:30]} 24. f4 {[%emt 0:00:25]} f6 {[%emt 0:01:22]} 25. Qe3 {[%emt 0:01:14]} Rxc4 {[%emt 0:02:01]} 26. Bf2 {[%emt 0:00:25]} b6 {[%emt 0:01:17]} 27. a5 {[%emt 0:00:22]} Rxb4 {[%emt 0:02:34]} 28. axb6 {[%emt 0:00:16]} Nxb6 {[%emt 0:00:15]} 29. fxe5 {[%emt 0:01:36]} fxe5 {[%emt 0:00:23]} 30. Qa3 {[%emt 0:00:18]} Ra4 {[%emt 0:02:47]} 31. Qb3 {[%emt 0:00:28]} Qb7 {[%emt 0:03:13]} 32. Rb1 {[%emt 0:01:12]} Ra6 {[%emt 0:01:54]} 33. Qb4 {[%emt 0:01:44]} Qxd5 {[%emt 0:02:51]} 34. Rfd1 {[%emt 0:00:39]} Qc6 {[%emt 0:06:03]} 35. Rxd6 {[%emt 0:00:28]} Qc7 {[%emt 0:02:39]} 36. Qd2 {[%emt 0:01:51]} h5 {[%emt 0:03:23]} 37. Bg3 {[%emt 0:00:29]} Re8 {[%emt 0:01:19]} 38. Rd7 {[%emt 0:01:28]} Qc6 {[%emt 0:01:38]} 39. Rd8+ {[%emt 0:00:35]} Rxd8 {[%emt 0:05:12]} 40. Qxd8+ {[%emt 0:00:10]} Qc8 {[%emt 0:01:22]} 41. Bxe5+ {[%emt 0:15:11]} Ka8 {[%emt 0:16:06]} 42. Qxc8+ {[%emt 0:00:18]} Nxc8 {[%emt 0:00:13]} 43. Rb8# {[%emt 0:00:08]} 1-0

[Event "GER-ch Youth-U10 2022"]
[Site "Willingen"]
[Date "2022.06.08"]
[Round "6.23"]
[White "Andersen, Jonatan M"]
[Black "Wagener, Nicolas"]
[Result "1/2-1/2"]
[ECO "B40"]
[WhiteElo "1857"]
[BlackElo "1315"]
[Annotator "NA RC COMBH"]
[PlyCount "116"]
[EventDate "2022.06.05"]
[EventType "swiss"]
[EventRounds "11"]
[EventCountry "GER"]
[SourceTitle "playchess.com"]
[Source "ChessBase"]
[SourceQuality "1"]
[TimeControl "40/4500+30:900+30"]

1. e4 {[%emt 0:00:02]} c5 {[%emt 0:00:02]} 2. Nf3 {[%emt 0:00:12]} e6 {[%emt 0:02:32]} 3. c3 {[%emt 0:00:11]} d5 {[%emt 0:00:08]} 4. e5 {[%emt 0:00:15]} d4 {[%emt 0:01:18]} 5. Qa4+ {[%emt 0:02:22]} Bd7 {[%emt 0:00:12]} 6. Bb5 {[%emt 0:01:33]} Nc6 {[%emt 0:00:40]} 7. cxd4 {[%emt 0:01:24]} cxd4 {[%emt 0:00:46]} 8. Bxc6 {[%emt 0:00:26]} Bxc6 {[%emt 0:00:51]} 9. Qxd4 {[%emt 0:00:16]} Qxd4 {[%emt 0:00:38]} 10. Nxd4 {[%emt 0:00:20]} Bxg2 {[%emt 0:00:43]} 11. Rg1 {[%emt 0:00:16]} Bd5 {[%emt 0:00:40]} 12. Nc3 {[%emt 0:00:20]} a6 {[%emt 0:01:51]} 13. Nxd5 {[%emt 0:00:14]} exd5 {[%emt 0:00:09]} 14. e6 {[%emt 0:01:19]} Nf6 {[%emt 0:01:46]} 15. exf7+ {[%emt 0:01:00]} Kxf7 {[%emt 0:00:19]} 16. b3 {[%emt 0:01:34]} Ne4 {[%emt 0:02:13]} 17. Bb2 {[%emt 0:00:37]} Bb4 {[%emt 0:00:53]} 18. Rd1 {[%emt 0:01:03]} Rae8 {[%emt 0:00:31]} 19. Ne2 {[%emt 0:01:40]} Rhg8 {[%emt 0:01:43]} 20. f3 {[%emt 0:00:38]} Nf6 {[%emt 0:01:12]} 21. Kf2 {[%emt 0:00:47]} Re7 {[%emt 0:01:00]} 22. a3 {[%emt 0:01:15]} Bd6 {[%emt 0:00:14]} 23. Ng3 {[%emt 0:01:13]} g6 {[%emt 0:01:29]} 24. Rde1 {[%emt 0:01:12]} Rc8 {[%emt 0:00:44]} 25. Rc1 {[%emt 0:00:45]} Rec7 {[%emt 0:01:11]} 26. b4 {[%emt 0:00:55]} a5 {[%emt 0:02:31]} 27. bxa5 {[%emt 0:01:07]} Bc5+ {[%emt 0:00:34]} 28. Kg2 {[%emt 0:03:02]} Bxg1 {[%emt 0:00:10]} 29. Rxc7+ {[%emt 0:00:12]} Rxc7 {[%emt 0:00:07]} 30. Kxg1 {[%emt 0:00:05]} Nd7 {[%emt 0:02:13]} 31. Kf2 {[%emt 0:00:52]} Rc2 {[%emt 0:01:25]} 32. Bc3 {[%emt 0:00:26]} d4 {[%emt 0:00:22]} 33. Bb4 {[%emt 0:00:20]} Nb8 {[%emt 0:01:05]} 34. Ke2 {[%emt 0:00:41]} Nc6 {[%emt 0:00:49]} 35. Kd3 {[%emt 0:00:18]} Nxb4+ {[%emt 0:00:10]} 36. axb4 {[%emt 0:00:04]} Rb2 {[%emt 0:00:24]} 37. Kxd4 {[%emt 0:00:34]} Rxd2+ {[%emt 0:00:16]} 38. Kc5 {[%emt 0:00:09]} Rxh2 {[%emt 0:05:05]} 39. Ne4 {[%emt 0:00:16]} Rc2+ {[%emt 0:00:56]} 40. Kb5 {[%emt 0:00:43]} h5 {[%emt 0:18:24]} 41. Kb6 {[%emt 0:16:55]} Rb2 {[%emt 0:17:37]} 42. Kxb7 {[%emt 0:00:47]} Rxb4+ {[%emt 0:00:13]} 43. Kc6 {[%emt 0:00:21]} h4 {[%emt 0:01:08]} 44. a6 {[%emt 0:00:50]} h3 {[%emt 0:00:53]} 45. Ng5+ {[%emt 0:00:14]} Kf6 {[%emt 0:00:31]} 46. Nxh3 {[%emt 0:00:05]} Ke5 {[%emt 0:02:05]} 47. a7 {[%emt 0:00:24]} Ra4 {[%emt 0:00:08]} 48. Kb7 {[%emt 0:00:42]} Kd4 {[%emt 0:01:01]} 49. a8=Q {[%emt 0:00:10]} Rxa8 {[%emt 0:00:05]} 50. Kxa8 {[%emt 0:00:41]} Ke3 {[%emt 0:00:31]} 51. Ng5 {[%emt 0:01:43]} Kf4 {[%emt 0:00:09]} 52. Nf7 {[%emt 0:00:12]} Kf5 {[%emt 0:02:31]} 53. Kb7 {[%emt 0:00:11]} Kf6 {[%emt 0:01:26]} 54. Nd6 {[%emt 0:00:08]} Ke6 {[%emt 0:01:14]} 55. Kc6 {[%emt 0:00:12]} g5 {[%emt 0:00:46]} 56. Ne4 {[%emt 0:00:38]} Kf5 {[%emt 0:03:19]} 57. Kd5 {[%emt 0:00:39]} g4 {[%emt 0:00:25]} 58. fxg4+ {[%emt 0:00:13]} Kxg4 {[%emt 0:00:06]} 1/2-1/2